bitfinex/quotes_BTCUSD_20251113
["timestamp","ask_amount","ask_price","bid_price","bid_amount"]
[1763059935141,0.0953,98408.0,98367.0,0.00246474]
[1763059935338,0.0953,98408.0,98360.0,0.61655485]
[1763059935339,0.2,98400.0,98360.0,0.53585286]
[1763059935540,0.20046523,98400.0,98360.0,0.54601959]
[1763059935836,0.0953,98399.0,98356.0,0.323]
[1763059936050,0.0953,98399.0,98367.0,0.002]
[1763059936560,0.09816915,98368.0,98367.0,0.002]
[1763059936820,0.09816915,98383.0,98367.0,0.002]
[1763059937177,0.09816915,98383.0,98351.0,0.323]
[1763059937384,0.09816915,98383.0,98360.0,0.92938812]
[1763059937594,0.09816915,98383.0,98361.0,0.323]
[1763059937811,0.00046523,98383.0,98370.0,0.60638812]
[1763059938017,0.09816915,98382.0,98367.0,0.323]
[1763059938242,0.00046523,98383.0,98367.0,0.324]
[1763059938445,0.00046523,98383.0,98371.0,0.323]
[1763059939752,0.0496,98488.0,98371.0,0.323]
[1763059939753,0.0496,98459.0,98390.0,0.01016363]
[1763059939984,0.0496,98459.0,98417.0,0.04341874]
[1763059939985,0.09816915,98455.0,98417.0,0.04341874]
[1763059940225,0.09816915,98438.0,98419.0,0.323]
[1763059940429,0.09816915,98438.0,98417.0,0.04341874]
[1763059940430,0.09816915,98470.0,98440.0,0.01015847]
[1763059940631,0.09816915,98455.0,98441.0,0.323]
[1763059940955,0.09816915,98470.0,98430.0,0.02919066]
[1763059940956,0.09816915,98454.0,98430.0,0.02919066]
[1763059941262,0.0496,98482.0,98430.0,0.02919066]
[1763059941263,0.002,98455.0,98453.0,0.20314119]
[1763059941460,0.002,98455.0,98454.0,0.36641874]
[1763059941690,0.2,98520.0,98454.0,0.04341874]
[1763059941691,0.41,98520.0,98454.0,0.04341874]
[1763059941934,0.09816915,98483.0,98457.0,0.36641874]
[1763059942176,0.09816915,98498.0,98475.0,0.20309702]
[1763059942411,0.09816915,98497.0,98473.0,0.36641874]
[1763059942616,0.09816915,98521.0,98489.0,0.323]
[1763059942829,0.09816915,98506.0,98500.0,0.60638812]
[1763059943043,0.01592861,98517.0,98491.0,0.323]
[1763059943286,0.0004658,98506.0,98500.0,0.01589139]
[1763059943514,0.0004658,98506.0,98505.0,0.04341874]
[1763059943977,0.0004658,98506.0,98504.0,0.269]
[1763059944191,0.0004658,98506.0,98505.0,0.24645411]
[1763059944838,0.0002,98550.0,98530.0,0.60638812]
[1763059945050,0.00033975,98550.0,98522.0,0.04341874]
[1763059945248,0.09816915,98541.0,98521.0,0.04341874]
[1763059945451,0.00033975,98550.0,98521.0,0.04341874]
[1763059945656,0.09816915,98540.0,98511.0,0.42116915]
[1763059946069,0.09816915,98540.0,98512.0,0.09816915]
[1763059947346,0.29816915,98540.0,98513.0,0.09816915]
[1763059947685,0.09816915,98540.0,98530.0,0.001]
[1763059947938,0.29816915,98540.0,98530.0,0.001]
[1763059948158,0.29816915,98540.0,98495.0,0.04341874]
[1763059948372,0.09816915,98525.0,98512.0,0.001]
[1763059948992,0.09816915,98524.0,98500.0,0.33315228]
[1763059949201,0.09816915,98524.0,98500.0,0.323]
[1763059950040,0.09816915,98540.0,98490.0,0.01609705]
[1763059950041,0.09816915,98523.0,98490.0,0.01609705]
[1763059950243,0.09816915,98523.0,98490.0,0.01015331]
[1763059950451,0.09816915,98540.0,98500.0,0.323]
[1763059950689,0.09816915,98540.0,98512.0,0.001]
[1763059951157,0.41352,98539.0,98490.0,0.01015331]
[1763059951422,0.09816915,98521.0,98488.0,0.04341874]
[1763059951645,0.09816915,98521.0,98490.0,0.001]
[1763059952101,0.09816915,98521.0,98486.0,0.09816915]
[1763059952326,0.09816915,98506.0,98487.0,0.09816915]
[1763059952548,0.09816915,98521.0,98487.0,0.09816915]
[1763059953674,0.09830882,98521.0,98481.0,0.323]
[1763059953890,0.09816915,98506.0,98490.0,0.001]
[1763059954307,0.01592673,98503.0,98490.0,0.001]
[1763059954503,0.01592673,98503.0,98470.0,0.09170652]
[1763059954504,0.01592673,98503.0,98471.0,0.04341874]
[1763059954619,0.01592673,98503.0,98487.0,0.001]
[1763059955023,0.09816915,98506.0,98471.0,0.323]
[1763059955224,0.09816915,98490.0,98458.0,0.07602381]
[1763059955432,0.09816915,98490.0,98452.0,0.09816915]
[1763059955644,0.09816915,98506.0,98467.0,0.09816915]
[1763059955851,0.09816915,98489.0,98462.0,0.323]
[1763059956084,0.09816915,98489.0,98440.0,0.01560966]
[1763059956289,0.09816915,98489.0,98442.0,0.09816915]
[1763059956486,0.09816915,98489.0,98430.0,0.01]
[1763059956487,0.2,98480.0,98430.0,0.01565694]
[1763059956688,0.09816915,98457.0,98410.0,0.63345507]
[1763059956890,0.09816915,98457.0,98420.0,0.01016053]
[1763059957091,0.09816915,98456.0,98421.0,0.323]
[1763059957573,0.09816915,98456.0,98420.0,0.02]
[1763059957764,0.09816915,98456.0,98428.0,0.09816915]
[1763059958060,0.0983087,98456.0,98428.0,0.04716915]
[1763059958479,0.00013955,98456.0,98428.0,0.04716915]
[1763059958612,0.09816915,98455.0,98429.0,0.04341874]
[1763059959428,0.09816915,98455.0,98428.0,0.04716915]
[1763059959429,0.09816915,98455.0,98431.0,0.04341874]
[1763059959625,0.00013955,98456.0,98428.0,0.04716915]
[1763059959626,0.00013955,98456.0,98434.0,0.20317995]
[1763059959830,0.00013955,98456.0,98431.0,0.04341874]
[1763059960036,0.00013955,98456.0,98443.0,0.09816915]
[1763059960240,0.00013955,98456.0,98446.0,0.20315681]
[1763059960483,0.00013955,98456.0,98445.0,0.323]
[1763059960689,0.09816915,98465.0,98445.0,0.323]
[1763059960901,0.09816915,98465.0,98445.0,0.0004658]
[1763059961068,0.09816915,98450.0,98445.0,0.0004658]
[1763059961268,0.09816915,98465.0,98445.0,0.0004658]
[1763059961523,0.09816915,98475.0,98445.0,0.0004658]
[1763059961727,0.09816915,98475.0,98445.0,0.0024658]
[1763059962437,0.09816915,98460.0,98445.0,0.0024658]
[1763059962592,0.09816915,98475.0,98445.0,0.0024658]
[1763059962796,0.09816915,98460.0,98445.0,0.0004658]
[1763059963194,0.001,98450.0,98445.0,0.0004658]
[1763059963397,0.09816915,98460.0,98445.0,0.0004658]
[1763059963934,0.09816915,98475.0,98445.0,0.0014658]
[1763059964150,0.09816915,98475.0,98448.0,0.323]
[1763059964559,0.09816915,98475.0,98448.0,0.52615228]
[1763059964786,0.09816915,98473.0,98452.0,0.323]
[1763059964924,0.09816915,98505.0,98462.0,0.09816915]
[1763059965147,0.09816915,98505.0,98474.0,0.20309889]
[1763059965501,0.04621,98566.0,98462.0,0.09816915]
[1763059965502,0.04621,98522.0,98481.0,0.20308485]
[1763059965708,0.04621,98522.0,98478.0,0.323]
[1763059965709,0.04621,98522.0,98479.0,0.04341874]
[1763059965913,0.09052,98538.0,98484.0,0.36641874]
[1763059966318,0.09052,98538.0,98484.0,0.56949709]
[1763059966522,0.09052,98538.0,98484.0,0.36641874]
[1763059966699,0.10030903,98521.0,98484.0,0.36641874]
[1763059966905,0.09930903,98521.0,98492.0,0.09816915]
[1763059967261,0.10030903,98521.0,98492.0,0.09816915]
[1763059967487,0.09930903,98521.0,98492.0,0.09816915]
[1763059967691,0.10030903,98521.0,98491.0,0.323]
[1763059967897,0.10030903,98521.0,98492.0,0.09816915]
[1763059968242,0.10030903,98521.0,98482.0,0.04341874]
[1763059968518,0.10030903,98521.0,98492.0,0.09816915]
[1763059968918,0.09830903,98521.0,98492.0,0.09816915]
[1763059969224,0.09812692,98520.0,98492.0,0.09816915]
[1763059969430,0.09816915,98506.0,98482.0,0.07773371]
[1763059969635,0.09812692,98520.0,98494.0,0.36641874]
[1763059969845,0.09812692,98520.0,98500.0,0.88608023]
[1763059970045,0.09812692,98520.0,98494.0,0.36641874]
[1763059970181,0.09812692,98520.0,98494.0,0.04341874]
[1763059970388,0.09912692,98520.0,98500.0,0.88608023]
[1763059970592,0.09912692,98520.0,98494.0,0.04341874]
[1763059970794,0.10012692,98520.0,98494.0,0.04341874]
[1763059971012,0.09816915,98519.0,98493.0,0.09816915]
[1763059971798,0.09816915,98519.0,98492.0,0.09816915]
[1763059971928,0.09816915,98519.0,98490.0,0.01756323]
[1763059972133,0.09816915,98519.0,98494.0,0.001]
[1763059972561,0.09816915,98519.0,98491.0,0.323]
[1763059972978,0.09916915,98519.0,98491.0,0.323]
[1763059973181,0.09816915,98519.0,98492.0,0.09816915]
[1763059973382,0.09812692,98518.0,98492.0,0.09816915]
[1763059973615,0.09812692,98518.0,98491.0,0.323]
[1763059973829,0.09816915,98504.0,98470.0,0.02]
[1763059974040,0.09816915,98504.0,98480.0,0.01549309]
[1763059974217,0.09816915,98504.0,98462.0,0.07511443]
[1763059974218,0.09816915,98489.0,98462.0,0.07511443]
[1763059974481,0.09816915,98489.0,98447.0,0.09816915]
[1763059974482,0.09816915,98489.0,98450.0,0.90609313]
[1763059974686,0.09816915,98489.0,98450.0,0.88608023]
[1763059974888,0.09816915,98504.0,98467.0,0.20311273]
[1763059975108,0.09816915,98504.0,98471.0,0.323]
[1763059975441,0.09830898,98504.0,98471.0,0.323]
[1763059975648,0.00013983,98504.0,98480.0,0.88608023]
[1763059976004,0.09812692,98503.0,98481.0,0.323]
[1763059976165,0.09812692,98503.0,98490.0,0.88608023]
[1763059976352,0.09812692,98503.0,98493.0,0.323]
[1763059977460,0.09812692,98503.0,98490.0,0.01979251]
[1763059978067,0.09812692,98503.0,98489.0,0.07461418]
[1763059978268,0.09812692,98503.0,98481.0,0.323]
[1763059978269,0.09912692,98503.0,98493.0,0.002]
[1763059978728,0.09816915,98502.0,98493.0,0.002]
[1763059978925,0.09816915,98502.0,98470.0,0.01809523]
[1763059979166,0.09816915,98502.0,98489.0,0.001]
[1763059979703,0.09816915,98502.0,98471.0,0.301]
[1763059979907,0.09816915,98502.0,98470.0,0.90417546]
[1763059980358,0.09816915,98502.0,98470.0,0.01809523]
[1763059980509,0.09803001,98502.0,98470.0,0.01809523]
[1763059980705,0.09803001,98502.0,98470.0,0.88608023]
[1763059980953,0.09803001,98502.0,98470.0,0.90412149]
[1763059981327,0.09803001,98502.0,98460.0,0.01717397]
[1763059981328,0.09816915,98487.0,98460.0,0.01717397]
[1763059981554,0.00013983,98504.0,98462.0,0.09816915]
[1763059981755,0.09812692,98501.0,98491.0,0.323]
[1763059982316,0.0980241,98501.0,98491.0,0.323]
[1763059982733,0.0980241,98501.0,98480.0,0.9040914]
[1763059982734,0.0980241,98501.0,98481.0,0.323]
[1763059982935,0.0980241,98501.0,98492.0,0.323]
[1763059983132,0.0980241,98501.0,98493.0,0.20306011]
[1763059983338,0.0980241,98501.0,98492.0,0.323]
[1763059983541,0.0980241,98501.0,98492.0,0.52606116]
[1763059983751,0.0980241,98501.0,98500.0,0.323]
[1763059984033,0.0980241,98501.0,98491.0,0.323]
[1763059984243,0.0980241,98501.0,98492.0,0.04341874]
[1763059984735,0.0980241,98501.0,98491.0,0.324]
[1763059984937,0.0980241,98501.0,98491.0,0.001]
[1763059985309,0.0980241,98501.0,98480.0,0.01649754]
[1763059985554,0.0980241,98501.0,98492.0,0.001]
[1763059986022,0.0990241,98501.0,98471.0,0.323]
[1763059986235,0.09816915,98493.0,98462.0,0.09816915]
[1763059986455,0.0980241,98501.0,98485.0,0.20307651]
[1763059986693,0.0980241,98501.0,98495.0,0.20305452]
[1763059986918,0.0980241,98501.0,98491.0,0.323]
[1763059987143,0.0980241,98501.0,98497.0,0.323]
[1763059987367,0.0980241,98501.0,98491.0,0.40060479]
[1763059987588,0.0990241,98501.0,98492.0,0.42116915]
[1763059987792,0.0980241,98501.0,98492.0,0.323]
[1763059988219,0.0980241,98501.0,98495.0,0.323]
[1763059988452,0.0980241,98501.0,98497.0,0.001]
[1763059988840,0.0980241,98501.0,98492.0,0.323]
[1763059989278,0.0980241,98501.0,98492.0,0.324]
[1763059989454,0.0980241,98501.0,98495.0,0.001]
[1763059990053,0.0980241,98501.0,98498.0,0.323]
[1763059990449,0.0980241,98501.0,98495.0,0.001]
[1763059990835,0.0980241,98501.0,98492.0,0.001]
[1763059991072,0.0980241,98501.0,98491.0,0.323]
[1763059991273,0.0980241,98501.0,98492.0,0.001]
[1763059991785,0.0980241,98501.0,98488.0,0.323]
[1763059991941,0.09816915,98500.0,98470.0,0.88608023]
[1763059992149,0.09816915,98500.0,98492.0,0.001]
[1763059992751,0.09816915,98500.0,98471.0,0.323]
[1763059993154,0.09816915,98500.0,98488.0,0.001]
[1763059993155,0.11360257,98499.0,98488.0,0.001]
[1763059993360,0.02170173,98498.0,98488.0,0.001]
[1763059993603,0.09508,98499.0,98488.0,0.001]
[1763059993604,0.06485,98489.0,98488.0,0.001]
[1763059993991,0.08338148,98489.0,98488.0,0.001]
[1763059994201,0.06485,98489.0,98451.0,0.32882134]
[1763059994425,0.09816915,98472.0,98451.0,0.07682134]
[1763059994685,0.09816915,98476.0,98450.0,0.90576041]
[1763059994820,0.09816915,98476.0,98452.0,0.20314361]
[1763059995037,0.04829,98484.0,98450.0,0.90576041]
[1763059995038,0.0980241,98488.0,98460.0,0.88608023]
[1763059995239,0.0980241,98488.0,98461.0,0.04341874]
[1763059995640,0.0981639,98488.0,98461.0,0.04341874]
[1763059995844,0.09816915,98481.0,98461.0,0.04341874]
[1763059996040,0.001,98476.0,98448.0,0.07193909]
[1763059996241,0.001,98476.0,98443.0,0.09816915]
[1763059996489,0.001,98476.0,98444.0,0.20316011]
[1763059996490,0.09816915,98466.0,98444.0,0.20316011]
[1763059996680,0.09816915,98466.0,98441.0,0.323]
[1763059996901,0.09816915,98465.0,98441.0,0.323]
[1763059997281,0.09816915,98465.0,98442.0,0.09816915]
[1763059997483,0.09816915,98480.0,98451.0,0.323]
[1763059997752,0.09816915,98480.0,98452.0,0.20314467]
[1763059997958,0.09816915,98480.0,98454.0,0.20313907]
[1763059998168,0.09816915,98480.0,98456.0,0.20313506]
[1763059998368,0.09816915,98480.0,98451.0,0.39493909]
[1763059998623,0.09916915,98480.0,98451.0,0.323]
[1763059998833,0.09916915,98480.0,98442.0,0.001]
[1763059998834,0.001,98480.0,98447.0,0.07193909]
[1763059999041,0.19619325,98479.0,98449.0,0.07193909]
[1763059999377,0.19619325,98479.0,98448.0,0.04341874]
[1763059999582,0.19619325,98479.0,98447.0,0.39493909]
[1763059999583,0.19619325,98479.0,98447.0,0.323]
[1763059999934,0.19619325,98479.0,98450.0,0.88608023]
[1763060000346,0.0980241,98479.0,98460.0,0.88608023]
[1763060000511,0.0980241,98479.0,98462.0,0.323]
[1763060000886,0.0980241,98479.0,98461.0,0.39493909]
[1763060001092,0.0990241,98479.0,98465.0,0.07193909]
[1763060001294,0.0990241,98479.0,98460.0,0.0153087]
[1763060001295,0.0980241,98479.0,98461.0,0.07193909]
[1763060001469,0.0980241,98479.0,98463.0,0.07193909]
[1763060001648,0.0980241,98479.0,98464.0,0.07193909]
[1763060001861,0.0980241,98479.0,98465.0,0.07193909]
[1763060002050,0.0980241,98479.0,98466.0,0.07193909]
[1763060002255,0.09816915,98476.0,98463.0,0.07193909]
[1763060002438,0.09816915,98476.0,98450.0,0.92503036]
[1763060002439,0.09816915,98476.0,98457.0,0.07193909]
[1763060002624,0.09816915,98476.0,98451.0,0.323]
[1763060002821,0.09816915,98476.0,98440.0,0.10667114]
[1763060003021,0.09508,98475.0,98430.0,0.90638902]
[1763060003400,0.0980241,98479.0,98460.0,0.88608023]
[1763060003522,0.09816915,98475.0,98456.0,0.20313623]
[1763060003720,0.09816915,98475.0,98458.0,0.20313182]
[1763060003986,0.0980241,98479.0,98460.0,0.20312817]
[1763060004191,0.09816915,98476.0,98462.0,0.20312364]
[1763060004471,0.0980241,98479.0,98462.0,0.04341874]
[1763060004673,0.0980241,98479.0,98478.0,0.323]
[1763060004897,0.0980241,98479.0,98478.0,0.36641874]
[1763060005099,0.0001398,98488.0,98478.0,0.36641874]
[1763060005100,0.0001398,98488.0,98487.0,0.56949122]
[1763060005540,0.0001398,98488.0,98487.0,0.66056099]
[1763060005788,0.09816915,98538.0,98506.0,0.04341874]
[1763060006011,0.09816915,98538.0,98511.0,0.323]
[1763060006012,0.09830895,98538.0,98511.0,0.323]
[1763060006237,0.09830895,98538.0,98521.0,0.323]
[1763060006469,0.09830895,98538.0,98511.0,0.36641874]
[1763060006691,0.09830895,98538.0,98515.0,0.20301476]
[1763060006692,0.09816915,98537.0,98515.0,0.20301476]
[1763060006897,0.0001398,98538.0,98516.0,0.323]
[1763060007107,0.09816915,98536.0,98516.0,0.323]
[1763060007326,0.0001398,98538.0,98516.0,0.323]
[1763060007327,0.0011398,98538.0,98516.0,0.323]
[1763060007540,0.09816915,98535.0,98516.0,0.323]
[1763060007750,0.09816915,98535.0,98511.0,0.09816915]
[1763060007962,0.09816915,98535.0,98511.0,0.42116915]
[1763060008176,0.09816915,98535.0,98500.0,0.01782305]
[1763060008402,0.09816915,98535.0,98505.0,0.09816915]
[1763060008619,0.09816915,98535.0,98501.0,0.09816915]
[1763060008840,0.09816915,98520.0,98501.0,0.323]
[1763060009056,0.09816915,98520.0,98480.0,0.63368912]
[1763060009304,0.09816915,98520.0,98490.0,0.33315331]
[1763060009581,0.09816915,98520.0,98500.0,0.60388177]
[1763060009818,0.09816915,98520.0,98491.0,0.20306423]
[1763060009819,0.09816915,98520.0,98492.0,0.247]
[1763060010019,0.09816915,98520.0,98490.0,0.6220105]
[1763060010229,0.04573,98519.0,98490.0,0.6220105]
[1763060010739,0.09916915,98520.0,98490.0,0.63216381]
[1763060010983,0.09916915,98520.0,98492.0,0.20306074]
[1763060011213,0.10016915,98520.0,98492.0,0.20306147]
[1763060011392,0.09816915,98519.0,98500.0,0.60388177]
[1763060011674,0.001,98519.0,98501.0,0.20304191]
[1763060011917,0.001,98519.0,98502.0,0.20303977]
[1763060012125,0.001,98519.0,98502.0,0.20304156]
[1763060012488,0.001,98519.0,98500.0,0.62124881]
[1763060012690,0.09816915,98535.0,98501.0,0.09816915]
[1763060013117,0.09916915,98520.0,98500.0,0.01598984]
[1763060013330,0.09816915,98520.0,98500.0,0.001]
[1763060013533,0.09757,98534.0,98500.0,0.001]
[1763060013776,0.09816915,98535.0,98500.0,0.61403405]
[1763060014005,0.09816915,98535.0,98510.0,0.60388177]
[1763060014243,0.09916915,98535.0,98501.0,0.04341874]
[1763060014482,0.001,98535.0,98510.0,0.60388177]
[1763060014681,0.09816915,98541.0,98520.0,0.60388177]
[1763060015219,0.0002,98550.0,98528.0,0.60388177]
[1763060015426,0.0002,98550.0,98537.0,0.52596944]
[1763060015629,0.0002,98550.0,98537.0,0.56938818]
[1763060016049,0.0002,98550.0,98537.0,0.64210768]
[1763060016333,0.0002,98550.0,98537.0,0.56938818]
[1763060016555,0.0002,98550.0,98537.0,0.57138818]
[1763060016765,0.0002,98550.0,98537.0,0.36841874]
[1763060016972,0.0002,98550.0,98530.0,0.03776214]
[1763060017169,0.0002,98550.0,98537.0,0.003]
[1763060017532,0.0002,98550.0,98530.0,0.01776214]
[1763060017734,0.0002,98550.0,98526.0,0.09816915]
[1763060017735,0.0011398,98538.0,98537.0,0.005]
[1763060018371,0.0001398,98538.0,98537.0,0.002]
[1763060018572,0.0001398,98538.0,98537.0,0.003]
[1763060018949,0.0001398,98538.0,98537.0,0.001]
[1763060019549,0.0001398,98538.0,98537.0,0.003]
[1763060019774,0.0001398,98538.0,98537.0,0.002]
[1763060020153,0.0609798,98538.0,98537.0,0.004]
[1763060020353,0.0609798,98538.0,98537.0,0.002]
[1763060020565,0.0609798,98538.0,98500.0,0.62097661]
[1763060020770,0.0001398,98538.0,98537.0,0.001]
[1763060021363,0.0001398,98538.0,98511.0,0.323]
[1763060021561,0.0001398,98538.0,98511.0,0.29953]
[1763060021760,0.0021398,98538.0,98511.0,0.29953]
[1763060021962,0.0021398,98538.0,98490.0,0.01015331]
[1763060021963,0.09816915,98516.0,98490.0,0.61955602]
[1763060022165,0.09816915,98532.0,98495.0,0.09816915]
[1763060022364,0.09816915,98532.0,98500.0,0.60388177]
[1763060022365,0.04573,98526.0,98500.0,0.60388177]
[1763060022567,0.04573,98526.0,98490.0,0.01598085]
[1763060022885,0.1433,98526.0,98490.0,0.01598085]
[1763060023090,0.09816915,98510.0,98480.0,0.01015434]
[1763060023258,0.09816915,98510.0,98470.0,0.02015537]
[1763060023259,0.09816915,98510.0,98490.0,0.62103308]
[1763060023480,0.09816915,98509.0,98490.0,0.01715131]
[1763060023677,0.09816915,98509.0,98489.0,0.323]
[1763060024111,0.09816915,98509.0,98481.0,0.04341874]
[1763060024314,0.09816915,98509.0,98490.0,0.60388177]
[1763060024514,0.09816915,98509.0,98490.0,0.62127154]
[1763060024717,0.09816915,98509.0,98464.0,0.0727195]
[1763060024718,0.04573,98508.0,98480.0,0.60388177]
[1763060024956,0.04573,98508.0,98480.0,0.01956506]
[1763060025079,0.04573,98508.0,98473.0,0.09816915]
[1763060025868,0.04573,98508.0,98473.0,0.0004658]
[1763060025869,0.09816915,98494.0,98473.0,0.0004658]
[1763060026218,0.04573,98493.0,98473.0,0.0004658]
[1763060026994,0.09816915,98479.0,98473.0,0.0004658]
[1763060027422,0.04673,98493.0,98473.0,0.0004658]
[1763060027624,0.001,98493.0,98473.0,0.0004658]
[1763060027827,0.001,98494.0,98473.0,0.0004658]
[1763060028242,0.09816915,98487.0,98473.0,0.0004658]
[1763060028983,0.09816915,98492.0,98474.0,0.02449]
[1763060029248,0.09816915,98507.0,98478.0,0.09816915]
[1763060029249,0.001,98494.0,98478.0,0.09816915]
[1763060029497,0.001,98494.0,98474.0,0.04898]
[1763060030002,0.09816915,98492.0,98474.0,0.04898]
[1763060030225,0.09816915,98507.0,98474.0,0.04898]
[1763060030743,0.09816915,98507.0,98475.0,0.02449]
[1763060031102,0.09816915,98507.0,98472.0,0.09816915]
[1763060031103,0.09816915,98507.0,98480.0,0.60446703]
[1763060031302,0.001,98494.0,98481.0,0.0697]
[1763060031762,0.0004662,98507.0,98481.0,0.0697]
[1763060031974,0.0014662,98507.0,98481.0,0.0697]
[1763060032180,0.0014662,98507.0,98490.0,0.60446703]
[1763060032384,0.0004662,98507.0,98491.0,0.09816915]
[1763060032739,0.0004662,98507.0,98497.0,0.80751812]
[1763060032937,0.0014662,98507.0,98499.0,0.20304657]
[1763060033139,0.0014662,98507.0,98492.0,0.56948002]
[1763060033408,0.0004662,98507.0,98492.0,0.36641874]
[1763060033589,0.0004662,98507.0,98506.0,0.04341874]
[1763060034559,0.0004662,98507.0,98506.0,0.14158789]
[1763060035199,0.0004662,98507.0,98506.0,0.04541874]
[1763060035613,0.0004662,98507.0,98506.0,0.04341874]
[1763060035841,0.0004662,98507.0,98506.0,0.002]
[1763060036067,0.0014662,98507.0,98506.0,0.002]
[1763060036461,0.0004662,98507.0,98506.0,0.002]
[1763060036967,0.0014662,98507.0,98506.0,0.002]
[1763060037123,0.0054662,98507.0,98506.0,0.002]
[1763060037324,0.0054662,98507.0,98493.0,0.36641874]
[1763060037729,0.0054662,98507.0,98506.0,0.001]
[1763060037929,0.0054662,98507.0,98491.0,0.323]
[1763060038133,0.0054662,98507.0,98492.0,0.04341874]
[1763060038362,0.0054662,98507.0,98506.0,0.001]
[1763060038564,0.0054662,98507.0,98481.0,0.0697]
[1763060038565,0.0054662,98507.0,98481.0,0.01580465]
[1763060038721,0.0054662,98507.0,98482.0,0.04341874]
[1763060038922,0.0054662,98507.0,98506.0,0.001]
[1763060039119,0.0054662,98507.0,98482.0,0.04341874]
[1763060039929,0.0054662,98507.0,98491.0,0.04341874]
[1763060040125,0.0054662,98507.0,98490.0,0.01791427]
[1763060040404,0.0054662,98507.0,98490.0,0.6223813]
[1763060040908,0.0054662,98507.0,98482.0,0.40101306]
[1763060041129,0.0054662,98507.0,98483.0,0.04341874]
[1763060041405,0.0054662,98507.0,98484.0,0.323]
[1763060041648,0.09816915,98498.0,98481.0,0.01580465]
[1763060042118,0.11325,98482.0,98481.0,0.01580465]
[1763060042375,0.09816915,98483.0,98481.0,0.01580465]
[1763060043142,0.04757,98492.0,98481.0,0.01580465]
[1763060043586,0.09816915,98483.0,98481.0,0.01580465]
[1763060044019,0.09816915,98482.0,98481.0,0.01580465]
[1763060044929,0.48684915,98482.0,98481.0,0.01580465]
[1763060045167,0.48684915,98482.0,98422.0,0.0727195]
[1763060045168,0.81846703,98470.0,98422.0,0.0727195]
[1763060045390,0.61846703,98470.0,98427.0,0.09816915]
[1763060045623,0.09584,98469.0,98427.0,0.07116915]
[1763060045845,0.09816915,98465.0,98427.0,0.07116915]
[1763060046072,0.09816915,98465.0,98430.0,0.61462653]
[1763060046315,0.09816915,98465.0,98444.0,0.20315973]
[1763060046535,0.09816915,98465.0,98437.0,0.2031742]
[1763060046759,0.09816915,98465.0,98442.0,0.20316375]
[1763060047012,0.09916915,98465.0,98442.0,0.20316375]
[1763060047232,0.09916915,98465.0,98430.0,0.85371281]
[1763060047233,0.001,98465.0,98450.0,0.60446703]
[1763060047458,0.001,98465.0,98464.0,0.323]
[1763060047700,0.001,98465.0,98464.0,0.36641874]
[1763060047913,0.001,98465.0,98464.0,0.44415143]
[1763060048261,0.09111,98524.0,98471.0,0.04341874]
[1763060048262,0.04602,98510.0,98471.0,0.04341874]
[1763060048430,0.09111,98524.0,98470.0,0.03015537]
[1763060048431,0.09111,98524.0,98490.0,0.60446703]
[1763060048653,0.0054662,98507.0,98501.0,0.04341874]
[1763060048873,0.0054662,98507.0,98482.0,0.09816915]
[1763060048874,0.0054662,98507.0,98490.0,0.62217903]
[1763060049101,0.0054662,98507.0,98469.0,0.03080349]
[1763060049102,0.09816915,98504.0,98480.0,0.01895155]
[1763060049319,0.09816915,98504.0,98470.0,0.08276302]
[1763060049320,0.09816915,98504.0,98471.0,0.323]
[1763060049572,0.09816915,98495.0,98471.0,0.04341874]
[1763060049760,0.09816915,98495.0,98471.0,0.0004662]
[1763060050097,0.2,98520.0,98471.0,0.0004662]
[1763060050098,0.04602,98531.0,98494.0,0.06205]
[1763060050206,0.01019999,98570.0,98508.0,0.03532]
[1763060050207,0.01592825,98537.0,98508.0,0.03532]
[1763060050572,0.01592825,98537.0,98510.0,0.60446703]
[1763060050792,0.0002,98550.0,98536.0,0.04121]
[1763060051448,0.00033986,98550.0,98536.0,0.04121]
[1763060051872,0.001,98537.0,98536.0,0.04121]
[1763060052093,0.09816915,98549.0,98536.0,0.04121]
[1763060052485,0.09816915,98549.0,98536.0,0.03963725]
[1763060052686,0.09816915,98549.0,98529.0,0.03964]
[1763060053237,0.09816915,98549.0,98520.0,0.6967407]
[1763060053654,0.09816915,98549.0,98521.0,0.04121]
[1763060054702,0.01626217,98550.0,98522.0,0.04341874]
[1763060054874,0.09816915,98549.0,98530.0,0.62321716]
[1763060055082,0.09816915,98549.0,98530.0,0.01875013]
[1763060055316,0.09816915,98548.0,98530.0,0.62321716]
[1763060055518,0.001,98549.0,98531.0,0.08242]
[1763060055747,0.09816915,98548.0,98531.0,0.08242]
[1763060056931,0.09816915,98548.0,98531.0,0.04221]
[1763060057178,0.00033986,98550.0,98531.0,0.04221]
[1763060057624,0.09816915,98549.0,98531.0,0.04221]
[1763060058007,0.09816915,98549.0,98531.0,0.04121]
[1763060058252,0.09816915,98534.0,98531.0,0.04121]
[1763060058470,0.18927915,98549.0,98512.0,0.04121]
[1763060058471,0.11008,98532.0,98512.0,0.04121]
[1763060058895,0.04602,98532.0,98512.0,0.04121]
[1763060059344,0.09816915,98518.0,98512.0,0.04121]
[1763060059758,0.13713,98532.0,98512.0,0.04121]
[1763060059958,0.13813,98532.0,98512.0,0.04121]
[1763060060600,0.1382698,98532.0,98512.0,0.04121]
[1763060060816,0.1382698,98532.0,98498.0,0.04121]
[1763060060817,0.06406,98513.0,98498.0,0.04121]
[1763060061034,0.06406,98513.0,98492.0,0.04121]
[1763060061035,0.04602,98499.0,98492.0,0.04121]
[1763060061254,0.04602,98499.0,98480.0,0.01250891]
[1763060061505,0.09816915,98502.0,98480.0,0.61697594]
[1763060061956,0.04602,98506.0,98480.0,0.61697594]
[1763060061957,0.04602,98506.0,98481.0,0.04341874]
[1763060062170,0.09816915,98502.0,98481.0,0.24650229]
[1763060062377,0.09816915,98502.0,98481.0,0.04388494]
[1763060063209,0.001,98513.0,98481.0,0.04388494]
[1763060063210,0.04602,98513.0,98481.0,0.04388494]
[1763060063412,0.09816915,98503.0,98481.0,0.04388494]
[1763060063619,0.09816915,98503.0,98481.0,0.11954834]
[1763060063821,0.04602,98513.0,98481.0,0.11954834]
[1763060064030,0.09816915,98503.0,98481.0,0.04388494]
[1763060064238,0.04602,98513.0,98483.0,0.04341874]
[1763060064620,0.04602,98513.0,98481.0,0.20355002]
[1763060064621,0.09816915,98503.0,98481.0,0.0004662]
[1763060065180,0.18927915,98503.0,98481.0,0.0004662]
[1763060065613,0.09111,98502.0,98481.0,0.0004662]
[1763060065784,0.09816915,98488.0,98481.0,0.0004662]